bitfinex/quotes_BTCUSD_20240918
["timestamp","ask_amount","ask_price","bid_price","bid_amount"]
[1726675557184,0.001646,59438.0,59437.0,1.90112837]
[1726675557416,0.001644,59441.0,59440.0,1.200655]
[1726675557630,0.001642,59451.0,59442.0,0.873155]
[1726675557855,0.001542,59451.0,59450.0,1.2714302]
[1726675558079,0.001442,59451.0,59450.0,2.26731787]
[1726675558303,0.001644,59461.0,59458.0,0.840927]
[1726675558519,0.001644,59461.0,59458.0,1.4130862]
[1726675558779,0.001644,59461.0,59458.0,1.55439482]
[1726675558994,0.001644,59461.0,59458.0,1.21802382]
[1726675559437,0.001644,59461.0,59458.0,0.30949362]
[1726675559658,0.001644,59461.0,59454.0,0.336393]
[1726675559871,0.001644,59461.0,59453.0,0.2357882]
[1726675560118,0.001644,59461.0,59458.0,0.005]
[1726675560343,0.00440446,59459.0,59458.0,0.005]
[1726675560563,0.0002,59459.0,59458.0,0.005]
[1726675560789,0.0002,59459.0,59458.0,0.0223195]
[1726675561008,0.0002,59459.0,59458.0,0.1905045]
[1726675561230,0.0002,59459.0,59458.0,1.0990347]
[1726675561480,0.0002,59459.0,59458.0,1.4354057]
[1726675561685,0.0002,59459.0,59458.0,1.4304057]
[1726675562363,0.0002,59459.0,59458.0,1.95283037]
[1726675562586,0.0012,59459.0,59458.0,1.95283037]
[1726675562805,0.0012,59459.0,59458.0,2.04773037]
[1726675562806,0.0011,59459.0,59458.0,2.04773037]
[1726675563015,0.0001,59459.0,59458.0,2.04773037]
[1726675563232,0.001644,59461.0,59460.0,1.54362]
[1726675563450,0.00154,59467.0,59466.0,0.603889]
[1726675563665,0.00154,59467.0,59466.0,2.03470887]
[1726675563884,0.00154,59467.0,59466.0,2.06470887]
[1726675564102,0.00164,59478.0,59470.0,1.202064]
[1726675564320,0.00164,59478.0,59470.0,1.73142167]
[1726675564546,0.003376,59479.0,59478.0,0.321129]
[1726675564806,0.001638,59491.0,59488.0,0.938005]
[1726675565023,0.001642,59511.0,59498.0,0.863362]
[1726675565024,0.0001,59499.0,59498.0,0.863362]
[1726675565247,0.0001,59499.0,59498.0,1.49206067]
[1726675565468,0.0001,59499.0,59498.0,0.0975]
[1726675565686,0.0001,59499.0,59498.0,0.29890082]
[1726675565901,0.0001,59499.0,59498.0,0.63504582]
[1726675566331,0.0001,59499.0,59498.0,0.97119082]
[1726675566773,0.001642,59511.0,59500.0,0.504201]
[1726675566777,0.001642,59511.0,59500.0,0.168067]
[1726675567011,0.168048,59507.0,59500.0,0.04619495]
[1726675567239,0.001642,59511.0,59500.0,1.24827485]
[1726675567463,0.001642,59511.0,59500.0,0.93514085]
[1726675567695,0.001642,59511.0,59500.0,0.04619495]
[1726675567914,0.001642,59511.0,59500.0,0.88652995]
[1726675568394,0.001642,59511.0,59500.0,1.40871762]
[1726675568898,0.001642,59511.0,59510.0,0.8658599]
[1726675569120,0.001642,59511.0,59510.0,1.32213139]
[1726675569349,0.001542,59511.0,59510.0,1.71398506]
[1726675569582,0.003176,59515.0,59514.0,0.840137]
[1726675569819,0.003176,59515.0,59514.0,0.168027]
[1726675570042,0.003176,59515.0,59510.0,0.99381639]
[1726675570043,0.003176,59515.0,59510.0,0.65773939]
[1726675570273,0.003176,59515.0,59514.0,0.504082]
[1726675570506,0.003176,59515.0,59514.0,1.02619067]
[1726675570960,0.003076,59515.0,59514.0,1.36524567]
[1726675571199,0.001838,59519.0,59518.0,0.84008]
[1726675571429,0.001838,59519.0,59518.0,1.2018249]
[1726675571652,0.001838,59519.0,59518.0,1.35091276]
[1726675571909,0.001838,59519.0,59518.0,1.01488076]
[1726675572159,0.001838,59519.0,59518.0,0.67884876]
[1726675572409,0.001838,59519.0,59518.0,1.2018249]
[1726675572662,0.001838,59519.0,59518.0,1.5378569]
[1726675572950,0.001642,59531.0,59530.0,0.503947]
[1726675573496,0.001542,59531.0,59530.0,0.167982]
[1726675574301,0.001542,59531.0,59524.0,0.3617449]
[1726675574484,0.001542,59531.0,59530.0,0.167982]
[1726675574712,0.001542,59531.0,59525.0,0.03617449]
[1726675574933,0.001542,59531.0,59530.0,0.167982]
[1726675575378,0.0014547,59531.0,59530.0,0.503947]
[1726675575610,0.0014547,59531.0,59530.0,0.167982]
[1726675575843,0.1694337,59531.0,59530.0,0.08657129]
[1726675576072,0.167991,59527.0,59522.0,0.168004]
[1726675576317,0.16305367,59527.0,59518.0,0.0928]
[1726675576545,0.49903667,59527.0,59519.0,0.00928]
[1726675576771,0.16305367,59527.0,59519.0,0.00928]
[1726675577014,0.1672538,59526.0,59519.0,0.00928]
[1726675577237,0.168022,59516.0,59511.0,0.168035]
[1726675577470,0.168022,59516.0,59510.0,0.0768]
[1726675577471,0.168029,59514.0,59510.0,0.0768]
[1726675577703,0.16305367,59526.0,59511.0,0.3617449]
[1726675577939,0.16305367,59526.0,59516.0,0.336041]
[1726675578176,0.16305367,59526.0,59511.0,0.3617449]
[1726675578177,0.168003,59523.0,59518.0,0.168016]
[1726675578403,0.167979,59532.0,59519.0,0.0514054]
[1726675578634,0.0068689,59536.0,59530.0,0.167982]
[1726675578866,0.0068689,59536.0,59530.0,0.503947]
[1726675579097,0.0068689,59536.0,59530.0,0.260082]
[1726675579621,0.0068689,59536.0,59530.0,1.11806567]
[1726675579857,0.0068689,59536.0,59535.0,0.503904]
[1726675580085,0.0068689,59536.0,59535.0,1.5375209]
[1726675580531,0.0068689,59536.0,59535.0,0.503904]
[1726675580816,0.0068689,59536.0,59535.0,0.167968]
[1726675581034,0.0068689,59536.0,59535.0,0.503904]
[1726675581253,0.0068689,59536.0,59535.0,0.5542944]
[1726675581487,0.0068689,59536.0,59535.0,0.5602944]
[1726675581706,0.0068689,59536.0,59535.0,1.2579753]
[1726675581935,0.0068689,59536.0,59535.0,0.0563904]
[1726675582220,0.0068689,59536.0,59535.0,0.173968]
[1726675582434,0.0068689,59536.0,59535.0,0.83984]
[1726675582896,0.0068689,59536.0,59535.0,1.33882967]
[1726675583130,0.0068689,59536.0,59535.0,1.36182967]
[1726675583827,0.0002,59539.0,59538.0,1.175716]
[1726675584060,0.0001,59539.0,59538.0,1.86077425]
[1726675584291,0.0001,59539.0,59538.0,1.86277425]
[1726675584512,0.003176,59551.0,59550.0,1.175482]
[1726675584738,0.003176,59551.0,59550.0,1.87318057]
[1726675584946,0.25195052,59578.0,59558.0,1.5370689]
[1726675584947,0.0048266,59563.0,59558.0,1.5370689]
[1726675585380,0.000919,59559.0,59558.0,1.5370689]
[1726675585601,0.000919,59559.0,59558.0,2.08892957]
[1726675585824,0.000819,59559.0,59558.0,2.00562257]
[1726675586080,0.000819,59559.0,59558.0,1.87793365]
[1726675586302,0.000719,59559.0,59558.0,2.94823223]
[1726675586526,0.0048266,59563.0,59562.0,1.328244]
[1726675586739,0.0048266,59563.0,59562.0,2.37281267]
[1726675586955,0.0048266,59563.0,59562.0,1.79758167]
[1726675587181,0.0048266,59563.0,59562.0,1.71297767]
[1726675587419,0.0048266,59563.0,59562.0,2.24184725]
[1726675588061,0.0048266,59563.0,59562.0,2.30184725]
[1726675588783,0.0002,59579.0,59570.0,1.198086]
[1726675588994,0.000719,59571.0,59570.0,1.59519565]
[1726675589220,0.000719,59571.0,59570.0,2.06093465]
[1726675589431,0.000719,59571.0,59570.0,1.98718123]
[1726675590517,0.0002,59579.0,59578.0,0.839235]
[1726675590724,0.0002,59579.0,59578.0,0.83867467]
[1726675590930,0.0002,59579.0,59578.0,1.17436867]
[1726675591579,0.0002,59579.0,59578.0,1.33742234]
[1726675591811,0.0002,59579.0,59578.0,1.98920192]
[1726675592029,0.0001,59579.0,59578.0,2.08240192]
[1726675592256,1e-05,59586.0,59585.0,0.935135]
[1726675592482,1e-05,59586.0,59579.0,0.167842]
[1726675592708,0.49870967,59585.0,59578.0,0.007]
[1726675592931,0.49870967,59585.0,59567.0,0.23405598]
[1726675592932,0.00419609,59584.0,59569.0,0.167871]
[1726675593153,0.167865,59572.0,59570.0,0.0480227]
[1726675593385,0.167865,59572.0,59562.0,0.335782]
[1726675593386,0.00419673,59571.0,59558.0,0.167903]
[1726675593615,0.00419673,59571.0,59553.0,0.0929]
[1726675593616,0.1672504,59571.0,59553.0,0.0929]
[1726675593837,0.335769,59565.0,59553.0,0.0929]
[1726675594068,0.335842,59552.0,59548.0,0.0815]
[1726675594291,0.335826,59555.0,59548.0,0.0815]
[1726675594531,0.33578,59563.0,59549.0,0.335857]
[1726675594751,0.16305367,59564.0,59552.0,0.23405598]
[1726675594752,0.01734331,59562.0,59552.0,0.23405598]
[1726675594969,0.167904,59558.0,59553.0,0.167916]
[1726675595202,0.16305367,59564.0,59552.0,0.23405598]
[1726675595419,0.03,59582.0,59557.0,0.23405598]
[1726675595642,0.335729,59572.0,59557.0,0.23405598]
[1726675595849,0.335757,59567.0,59558.0,0.0234056]
[1726675596064,0.167884,59565.0,59561.0,0.167894]
[1726675596285,0.167884,59565.0,59560.0,0.167896]
[1726675596493,0.167883,59566.0,59561.0,0.167894]
[1726675596710,0.16305367,59571.0,59560.0,0.335794]
[1726675596939,0.030818,59586.0,59558.0,0.0234056]
[1726675596940,0.000818,59586.0,59567.0,0.23405598]
[1726675597149,0.16305367,59585.0,59567.0,0.23405598]
[1726675597384,0.16305367,59583.0,59558.0,0.0234056]
[1726675597591,0.16305367,59583.0,59557.0,0.23405598]
[1726675597592,0.001,59572.0,59559.0,0.02574616]
[1726675597805,0.167895,59561.0,59559.0,0.02574616]
[1726675598013,0.16305367,59571.0,59559.0,0.02574616]
[1726675598240,0.335753,59568.0,59557.0,0.001]
[1726675598451,0.16305367,59567.0,59557.0,0.001]
[1726675598717,0.167897,59560.0,59557.0,0.001]
[1726675598934,0.16305367,59567.0,59557.0,0.336808]
[1726675599149,0.167901,59559.0,59558.0,0.0672634]
[1726675599394,0.50371,59558.0,59557.0,0.001]
[1726675599635,0.50371,59558.0,59541.0,1.00702399]
[1726675599636,0.16305367,59558.0,59541.0,1.00702399]
[1726675599845,0.167938,59546.0,59542.0,0.1500207]
[1726675600092,0.335819,59556.0,59543.0,0.335889]
[1726675600310,0.0263447,59566.0,59542.0,0.23405598]
[1726675600311,0.335846,59552.0,59542.0,0.23405598]
[1726675600521,0.335846,59552.0,59545.0,0.167939]
[1726675600522,0.335843,59552.0,59545.0,0.167939]
[1726675600735,0.16305367,59555.0,59546.0,0.167937]
[1726675600997,0.03,59573.0,59553.0,0.23405598]
[1726675601222,0.167906,59557.0,59554.0,0.0234056]
[1726675601438,0.16305367,59572.0,59554.0,0.0234056]
[1726675601439,0.503736,59555.0,59554.0,0.0234056]
[1726675601642,0.335781,59563.0,59550.0,0.167923]
[1726675601864,0.167911,59556.0,59550.0,0.167923]
[1726675602093,0.167911,59556.0,59543.0,0.26646158]
[1726675602094,0.16305367,59555.0,59543.0,0.0324056]
[1726675602338,0.33585,59551.0,59542.0,0.168947]
[1726675602578,0.167933,59548.0,59540.0,0.425906]
[1726675602806,0.005,59552.0,59541.0,0.151443]
[1726675603037,0.005,59552.0,59540.0,0.65996198]
[1726675603038,0.005,59552.0,59551.0,0.503769]
[1726675603262,0.335735,59571.0,59564.0,0.167885]
[1726675603476,0.167887,59564.0,59559.0,0.167899]
[1726675603692,0.335775,59564.0,59554.0,0.335825]
[1726675603946,0.335761,59567.0,59556.0,0.335815]
[1726675603947,0.167883,59566.0,59556.0,0.335815]
[1726675604169,0.16305367,59565.0,59555.0,0.0569881]
[1726675604399,0.16725104,59565.0,59536.0,0.23405598]
[1726675604615,0.335842,59552.0,59546.0,1.00702399]
[1726675604841,0.1,59564.0,59547.0,0.1007024]
[1726675605055,0.16305367,59563.0,59555.0,0.33582]
[1726675605270,0.1,59570.0,59552.0,0.23405598]
[1726675605271,0.335758,59567.0,59552.0,0.23405598]
[1726675605482,0.33093567,59566.0,59561.0,0.167893]
[1726675605705,0.16305367,59566.0,59559.0,0.167898]
[1726675605918,0.167897,59561.0,59559.0,0.001]
[1726675606160,0.007,59564.0,59559.0,0.001]
[1726675606161,0.167897,59560.0,59559.0,0.001]
[1726675606375,0.167902,59559.0,59556.0,0.001634]
[1726675606597,0.167906,59557.0,59556.0,0.001634]
[1726675606813,0.83953,59557.0,59556.0,0.001634]
[1726675607023,0.167906,59557.0,59556.0,0.001634]
[1726675607232,0.503718,59557.0,59556.0,0.02092976]
[1726675607461,0.503718,59557.0,59556.0,0.001634]
[1726675607703,0.167906,59557.0,59556.0,0.001634]
[1726675608788,1.00258367,59557.0,59556.0,0.001634]
[1726675609231,1.00258367,59557.0,59556.0,0.002634]
[1726675609441,1.00258367,59557.0,59556.0,0.001634]
[1726675609858,1.00458367,59557.0,59556.0,0.001634]
[1726675610414,1.34039567,59557.0,59556.0,0.001634]
[1726675610847,1.77620767,59557.0,59556.0,0.001634]
[1726675611117,1.77620767,59557.0,59556.0,0.002634]
[1726675611118,1.78320767,59557.0,59556.0,0.002634]
[1726675611342,1.78320767,59557.0,59532.0,0.167974]
[1726675611343,0.335887,59544.0,59532.0,0.167974]
[1726675611558,0.167967,59536.0,59532.0,0.167976]
[1726675612025,0.167967,59536.0,59531.0,0.01748]
[1726675612026,0.00419906,59550.0,59531.0,0.01748]
[1726675612242,0.009,59557.0,59537.0,0.23405598]
[1726675612465,0.00419857,59556.0,59541.0,0.335902]
[1726675612693,0.167923,59551.0,59542.0,0.23405598]
[1726675612944,0.513718,59557.0,59556.0,0.001]
[1726675613156,0.167938,59546.0,59541.0,0.167949]
[1726675613386,0.335855,59550.0,59544.0,0.16794]
[1726675613601,0.335855,59550.0,59541.0,0.335902]
[1726675613602,0.167933,59548.0,59541.0,0.335902]
[1726675613816,0.167932,59548.0,59544.0,0.167942]
[1726675614298,0.335834,59554.0,59545.0,0.335877]
[1726675614299,0.167922,59552.0,59545.0,0.335877]
[1726675614515,0.167907,59557.0,59553.0,0.167917]
[1726675614739,0.002,59573.0,59553.0,0.167917]
[1726675614740,0.33578,59563.0,59554.0,0.0167917]
[1726675614972,0.167896,59561.0,59557.0,0.167904]
[1726675615189,0.16305367,59562.0,59557.0,0.167904]
[1726675615190,0.16305367,59560.0,59557.0,0.167904]
[1726675615417,0.03,59579.0,59559.0,0.335798]
[1726675615673,0.03,59579.0,59558.0,0.01846957]
[1726675615674,0.335714,59575.0,59560.0,0.0901]
[1726675615879,0.49877467,59574.0,59563.0,0.335777]
[1726675616090,0.16305367,59574.0,59569.0,0.167871]
[1726675616305,0.16305367,59574.0,59565.0,0.335766]
[1726675616522,0.16305367,59574.0,59564.0,0.0659933]
[1726675616523,0.16305367,59574.0,59566.0,0.335759]
[1726675616755,0.16305367,59574.0,59568.0,0.335746]
[1726675616971,0.335693,59579.0,59569.0,0.0335746]
[1726675617178,0.335674,59582.0,59569.0,0.0335746]
[1726675617179,0.014,59574.0,59571.0,0.167866]
[1726675617388,0.014,59574.0,59569.0,0.3693186]
[1726675617389,0.49874967,59578.0,59570.0,0.335736]
[1726675617606,0.167856,59575.0,59569.0,0.0335746]
[1726675617822,0.014,59574.0,59570.0,0.02676306]
[1726675618108,0.014,59574.0,59564.0,0.4017653]
[1726675618109,0.167864,59572.0,59568.0,0.167875]
[1726675618322,0.16787,59570.0,59565.0,0.167883]
[1726675618535,0.3357,59577.0,59565.0,0.335765]
[1726675618748,0.167862,59573.0,59569.0,0.167871]
[1726675618968,0.335696,59578.0,59572.0,0.167862]
[1726675619181,0.167851,59577.0,59573.0,0.1846452]
[1726675619409,0.335682,59581.0,59573.0,0.0167862]
[1726675619630,0.000818,59586.0,59578.0,0.23405598]
[1726675620059,0.167832,59584.0,59577.0,0.0941]
[1726675620275,0.167828,59585.0,59580.0,0.16784]
[1726675620487,0.000818,59586.0,59578.0,0.04298]
[1726675620912,0.012818,59586.0,59578.0,0.04398]
[1726675621145,0.503524,59580.0,59579.0,0.0473774]
[1726675621368,0.503524,59580.0,59566.0,0.26198]
[1726675621369,0.335689,59579.0,59566.0,0.26198]
[1726675621611,0.000818,59586.0,59566.0,0.26198]
[1726675621612,0.16305367,59578.0,59567.0,0.25177501]
[1726675621841,0.16305367,59578.0,59567.0,0.026198]
[1726675621842,0.167875,59568.0,59567.0,0.026198]
[1726675622084,0.167878,59567.0,59566.0,0.0941]
[1726675622306,0.167865,59572.0,59566.0,0.0941]
[1726675622542,0.000819,59591.0,59566.0,0.0941]
[1726675622765,0.16305367,59584.0,59571.0,0.335731]
[1726675622985,0.335668,59583.0,59572.0,0.0335731]
[1726675623245,0.167854,59576.0,59572.0,0.0335731]
[1726675623468,0.167854,59576.0,59571.0,0.167865]
[1726675623695,0.167842,59580.0,59575.0,0.167852]
[1726675623916,0.000818,59586.0,59581.0,0.167837]
[1726675624140,0.000818,59586.0,59567.0,0.335755]
[1726675624141,0.012,59584.0,59574.0,0.335716]
[1726675624356,0.012,59584.0,59571.0,0.001]
[1726675624357,0.503557,59576.0,59575.0,0.0570772]
[1726675624578,0.167861,59573.0,59569.0,0.167871]
[1726675624804,0.16305367,59583.0,59566.0,0.0941]
[1726675625064,0.16305367,59583.0,59573.0,0.167859]
[1726675625065,0.009,59576.0,59573.0,0.167859]
[1726675625276,0.009,59576.0,59571.0,0.001]
[1726675625277,0.009,59576.0,59574.0,0.0168859]
[1726675625823,0.009,59576.0,59575.0,0.167855]
[1726675626039,0.009,59576.0,59575.0,0.839277]
[1726675626268,0.000818,59586.0,59574.0,0.0168859]
[1726675626499,0.000818,59586.0,59585.0,0.839135]
[1726675626716,0.000818,59586.0,59585.0,1.174789]
[1726675626937,0.000718,59586.0,59585.0,1.269289]
[1726675628032,0.000618,59586.0,59585.0,1.45534267]
[1726675628275,0.000618,59586.0,59585.0,1.71842825]
[1726675628720,0.000618,59586.0,59585.0,2.05408225]
[1726675628965,0.000518,59586.0,59585.0,2.05408225]
[1726675629188,0.003176,59587.0,59586.0,1.327771]
[1726675629421,0.003076,59587.0,59586.0,1.49082467]
[1726675629641,0.002976,59587.0,59586.0,1.98581225]
[1726675629865,0.002976,59587.0,59586.0,2.38146125]
[1726675630080,0.0081193,59599.0,59590.0,1.327691]
[1726675630295,0.0081193,59599.0,59590.0,1.60514698]
[1726675630511,0.0081193,59599.0,59590.0,1.85120065]
[1726675630729,0.335484,59616.0,59590.0,1.85120065]
[1726675630730,0.7272391,59618.0,59606.0,0.167768]
[1726675630978,0.167743,59615.0,59606.0,0.23405598]
[1726675631195,0.45564533,59618.0,59607.0,0.0234056]
[1726675631450,0.335477,59617.0,59609.0,0.335518]
[1726675631660,0.618699,59618.0,59611.0,0.167753]
[1726675631931,0.618699,59618.0,59607.0,0.0234056]
[1726675632136,0.45564533,59618.0,59617.0,0.167737]
[1726675632343,0.45564533,59618.0,59617.0,0.5433903]
[1726675632772,0.0002,59619.0,59618.0,0.503203]
[1726675632985,0.0002,59619.0,59618.0,0.838672]
[1726675633227,0.0002,59619.0,59617.0,0.0401793]
[1726675633428,0.0002,59619.0,59618.0,0.167734]
[1726675633647,0.0002,59619.0,59618.0,0.22207313]
[1726675633858,0.0002,59619.0,59618.0,0.05433913]
[1726675634079,0.0002,59619.0,59617.0,0.0401793]
[1726675634335,0.1674468,59619.0,59607.0,0.0234056]
[1726675634852,0.1674468,59619.0,59608.0,0.418724]
[1726675634853,0.167747,59614.0,59608.0,0.418724]
[1726675635101,0.16325367,59619.0,59612.0,0.335502]
[1726675635440,0.167746,59614.0,59608.0,0.0832]
[1726675635680,0.00419362,59618.0,59609.0,0.01994056]
[1726675635933,0.16325367,59619.0,59609.0,0.01994056]
[1726675635934,0.167757,59610.0,59609.0,0.01994056]
[1726675636199,0.167747,59614.0,59609.0,0.18769856]
[1726675636461,0.0002,59619.0,59618.0,0.503203]
[1726675636949,0.0002,59619.0,59615.0,0.335484]
[1726675637261,0.0002,59619.0,59618.0,0.167734]
[1726675637432,0.0002,59619.0,59616.0,0.056954]
[1726675637433,0.167737,59617.0,59616.0,0.056954]
[1726675637672,0.167737,59617.0,59607.0,0.167764]
[1726675637673,0.167754,59612.0,59607.0,0.167764]
[1726675637891,0.167754,59611.0,59606.0,0.260566]
[1726675638108,0.3355,59613.0,59606.0,0.0928]
[1726675638359,0.3355,59613.0,59608.0,0.250961]
[1726675638360,0.167751,59613.0,59608.0,0.250961]
[1726675638610,0.0002,59619.0,59612.0,0.335502]
[1726675638811,0.0002,59619.0,59614.0,0.167744]
[1726675638812,0.167734,59618.0,59614.0,0.167744]
[1726675639025,0.0002,59619.0,59613.0,0.03554426]
[1726675639473,0.0002,59619.0,59616.0,0.167739]
[1726675639684,0.0002,59619.0,59618.0,0.503203]
[1726675640103,0.0002,59619.0,59613.0,0.03554426]
[1726675640108,0.167745,59614.0,59613.0,0.03554426]
[1726675640339,0.16325367,59619.0,59609.0,0.335516]
[1726675640340,0.335471,59618.0,59609.0,0.335516]
[1726675640573,0.335469,59618.0,59610.0,0.167754]
[1726675640809,0.167747,59614.0,59609.0,0.167759]
[1726675641087,0.167747,59614.0,59607.0,0.335529]
[1726675641088,0.335481,59616.0,59610.0,0.0679288]
[1726675641318,0.0002,59619.0,59610.0,0.0679288]
[1726675641544,0.0002,59619.0,59614.0,0.167745]
[1726675641767,0.0002,59619.0,59610.0,0.0679288]
[1726675641768,0.167735,59618.0,59612.0,0.335502]
[1726675641991,0.0002,59619.0,59610.0,0.0679288]
[1726675642215,0.167752,59612.0,59611.0,0.01511288]
[1726675642462,0.0002,59619.0,59611.0,0.01511288]
[1726675642463,0.335474,59617.0,59611.0,0.01511288]
[1726675642695,0.167739,59617.0,59612.0,0.167751]
[1726675642917,0.503236,59614.0,59613.0,0.05863117]
[1726675643146,0.503236,59614.0,59597.0,0.23405598]
[1726675643147,0.16305367,59614.0,59598.0,0.0751]
[1726675643372,0.0302,59619.0,59599.0,1.0065172]
[1726675643373,0.335549,59604.0,59599.0,1.0065172]
[1726675643593,0.335591,59597.0,59587.0,0.0751]
[1726675643889,0.49860767,59603.0,59587.0,0.0751]
[1726675644140,0.002,59616.0,59592.0,0.23405598]
[1726675644141,0.1,59616.0,59592.0,0.23405598]
[1726675644365,0.18041619,59615.0,59596.0,0.335592]
[1726675644587,0.335561,59602.0,59594.0,0.335604]
[1726675644823,0.167794,59597.0,59595.0,0.0905264]
[1726675645054,0.335557,59603.0,59592.0,0.33561]
[1726675645281,0.002,59614.0,59598.0,0.23405598]
[1726675645282,0.335497,59614.0,59598.0,0.23405598]
[1726675645514,0.167762,59609.0,59605.0,0.16777]
[1726675645739,0.167758,59610.0,59606.0,0.016777]
[1726675645966,0.000817,59617.0,59606.0,0.016777]
[1726675646201,0.168556,59617.0,59613.0,0.167747]
[1726675646446,0.01739029,59616.0,59614.0,0.167745]
[1726675646660,0.01739029,59616.0,59611.0,0.335507]
[1726675646661,0.16774,59616.0,59611.0,0.335507]
[1726675646891,0.16774,59616.0,59614.0,0.335491]
[1726675646892,0.01736631,59615.0,59614.0,0.335491]
[1726675647144,0.0033099,59616.0,59615.0,0.503229]
[1726675647661,0.0033099,59616.0,59613.0,0.335496]
[1726675647849,0.0033099,59616.0,59615.0,0.503229]
[1726675648069,0.0033099,59616.0,59615.0,0.23258607]
[1726675648288,0.0033099,59616.0,59615.0,0.56807207]
[1726675648978,0.0033099,59616.0,59615.0,0.90355807]
[1726675649462,0.0033099,59616.0,59615.0,1.23904407]
[1726675649969,0.0033099,59616.0,59615.0,0.90355807]
[1726675650201,0.0033099,59616.0,59615.0,1.23904407]
[1726675650806,0.0033099,59616.0,59615.0,1.33344407]
[1726675651045,0.0033099,59616.0,59615.0,0.06484307]
[1726675651287,0.0033099,59616.0,59613.0,0.335491]
[1726675651557,0.0033099,59616.0,59615.0,0.167743]
[1726675651811,0.0033099,59616.0,59612.0,0.0671017]
[1726675652052,0.01742035,59615.0,59612.0,0.2348517]
[1726675652308,0.01742035,59614.0,59613.0,0.06484587]
[1726675652609,0.02479801,59614.0,59613.0,0.23259387]
[1726675652816,0.00737766,59614.0,59613.0,0.06484587]
[1726675653092,0.00737766,59614.0,59612.0,0.0671017]
[1726675653093,0.838742,59613.0,59612.0,0.0671017]
[1726675653329,0.335506,59612.0,59599.0,0.66718742]
[1726675653592,0.167771,59605.0,59598.0,0.25161242]
[1726675653853,0.01740474,59604.0,59599.0,0.04256124]
[1726675654190,0.01740474,59604.0,59601.0,0.16778]
[1726675654191,0.01740474,59603.0,59601.0,0.16778]
[1726675654336,0.01740474,59603.0,59600.0,0.167784]
[1726675654618,0.02597423,59602.0,59601.0,0.83891]
[1726675654846,0.00856949,59602.0,59601.0,1.26262112]
[1726675655086,0.0032099,59607.0,59606.0,0.83884]
[1726675655338,0.0032099,59607.0,59606.0,1.40843198]
[1726675655576,0.0032099,59607.0,59606.0,1.50103198]
[1726675655577,0.0031099,59607.0,59606.0,1.50103198]
[1726675656286,0.0030099,59607.0,59606.0,1.83656798]
[1726675656509,0.0029099,59607.0,59606.0,2.59121823]
[1726675656741,0.0029099,59607.0,59606.0,2.44702723]
[1726675657173,0.0029099,59607.0,59606.0,2.44502723]
[1726675657389,0.0029099,59607.0,59606.0,2.31770723]
[1726675657599,0.0029099,59607.0,59606.0,2.68965623]
[1726675658215,0.0029099,59607.0,59606.0,2.68765623]
[1726675658430,0.0029099,59607.0,59606.0,2.31770723]
[1726675658642,0.0029099,59607.0,59606.0,2.55269323]
[1726675658851,0.0029099,59607.0,59606.0,2.55069323]
[1726675659320,0.0029099,59607.0,59606.0,2.64165723]
[1726675659536,0.0029099,59607.0,59606.0,2.61278823]
[1726675659746,0.0029099,59607.0,59606.0,2.61478823]
[1726675660400,0.0029099,59607.0,59606.0,2.61278823]
[1726675661704,0.0028099,59607.0,59606.0,2.32970723]
[1726675661915,0.0028099,59607.0,59606.0,2.77945723]
[1726675662123,0.0028099,59607.0,59606.0,2.54539423]
[1726675662577,0.0028099,59607.0,59606.0,0.17708558]
[1726675662802,0.18796614,59607.0,59606.0,0.014]
[1726675663048,0.5322224,59607.0,59606.0,0.014]
[1726675663266,1.03080707,59607.0,59606.0,0.014]
[1726675663490,1.36633845,59607.0,59606.0,0.014]
[1726675663713,0.503355,59600.0,59599.0,0.001634]
[1726675663924,0.85631619,59600.0,59599.0,0.001634]
[1726675664391,0.86493975,59600.0,59599.0,0.001634]
[1726675665879,0.19379975,59600.0,59599.0,0.001634]
[1726675666314,0.86493975,59600.0,59599.0,0.001634]
[1726675666539,1.70013342,59600.0,59599.0,0.002634]
[1726675666767,1.72513342,59600.0,59599.0,0.002634]
[1726675666984,1.38896342,59600.0,59599.0,0.001634]
[1726675667201,1.36456342,59600.0,59599.0,0.002634]
[1726675667702,0.335598,59595.0,59584.0,0.167829]
[1726675667917,0.19006842,59600.0,59585.0,0.0481136]
[1726675667918,0.18464032,59594.0,59585.0,0.0481136]
[1726675668136,0.18464032,59594.0,59575.0,1.0068888]
[1726675668137,0.167846,59579.0,59575.0,1.0068888]
[1726675668347,0.01739119,59578.0,59575.0,1.0068888]
[1726675668562,0.167845,59579.0,59574.0,0.350157]
[1726675668785,0.00821558,59577.0,59574.0,0.1823]
[1726675669014,0.16305367,59594.0,59574.0,0.1823]
[1726675669015,0.167855,59575.0,59574.0,0.1823]
[1726675669255,0.167855,59575.0,59566.0,0.335759]
[1726675669256,0.17606758,59576.0,59575.0,0.01823]
[1726675669696,0.01761252,59576.0,59567.0,0.167877]
[1726675669705,0.01761252,59576.0,59566.0,0.335759]
[1726675669706,0.167865,59572.0,59568.0,0.167874]
[1726675669919,0.00821558,59576.0,59572.0,0.167863]
[1726675670142,0.18548207,59575.0,59569.0,0.0578633]
[1726675670376,0.18548207,59575.0,59564.0,0.32465598]
[1726675670377,0.01762707,59574.0,59564.0,0.0906]
[1726675670604,0.00821558,59575.0,59561.0,0.335788]
[1726675670605,0.167883,59566.0,59561.0,0.167892]
[1726675670840,0.01762707,59573.0,59557.0,0.079]
[1726675670841,0.17091061,59573.0,59557.0,0.079]
[1726675671060,0.17091061,59573.0,59559.0,0.167898]
[1726675671061,0.335763,59566.0,59559.0,0.167898]
[1726675671280,0.335779,59563.0,59558.0,0.0175034]
[1726675671492,0.16305367,59573.0,59558.0,0.0175034]
[1726675671493,0.1679,59560.0,59558.0,0.0175034]
[1726675671699,0.16789,59563.0,59558.0,0.0175034]
[1726675671935,0.16789,59563.0,59559.0,0.22073534]
[1726675672152,0.335759,59567.0,59559.0,0.38863434]
[1726675672371,0.16305367,59573.0,59559.0,0.05283534]
[1726675672593,0.16305367,59573.0,59558.0,0.0175034]
[1726675672806,0.79130833,59584.0,59563.0,0.23405598]
[1726675672807,0.167851,59577.0,59563.0,0.23405598]